{"text_format":"1","workbook":"xlsx","n_sheets":1,"sheets":["Лист1"],"not_rendered":{"charts":1,"images":1,"macros":1,"external_links":1,"defined_names":7,"comments":0,"pivot_tables":0},"unopened":[],"bounds":{"document_bytes":16777216,"sheet_cells":100000,"rows_first":2000,"rows_last":500,"rows_between":2000,"halvings":0,"cell_chars":16384,"cell_head_chars":4096},"cells_cut":0,"cells_raw":0,"read":"whole","date_system":"1900"}

{"sheet":"Лист1","index":0,"n_rows":92,"n_cols":144,"rows_kept":92,"cut":false,"hidden":false,"merged":[[58,17,60,17],[48,17,49,17],[47,24,47,26],[47,27,47,29],[55,21,55,23],[55,24,55,26],[49,18,49,20],[50,18,50,20],[51,18,51,20],[52,18,52,20],[48,18,48,20],[55,18,55,20],[47,18,47,20],[47,21,47,23],[58,18,58,20],[59,18,59,20],[56,18,56,20],[57,18,57,20],[46,0,46,14],[47,0,47,14],[48,0,48,14],[56,17,57,17],[50,17,52,17],[49,0,49,14],[50,0,50,14],[53,0,53,14],[56,0,56,14],[57,0,57,14],[5,0,5,14],[6,0,6,14],[17,4,17,6],[18,3,18,14],[16,4,16,14],[7,0,7,14],[9,0,9,14],[17,12,17,14],[14,8,14,9],[14,4,14,7],[10,10,10,14],[11,10,11,14],[12,10,12,14],[13,10,13,14],[26,0,28,1],[26,4,27,5],[26,6,28,7],[8,0,8,14],[26,2,27,3],[19,0,20,14],[21,0,22,2],[21,12,21,13],[22,12,22,13],[23,12,23,13],[86,12,86,14],[34,6,34,7],[36,0,36,1],[54,0,54,14],[55,0,55,14],[58,0,58,14],[81,0,82,14],[37,4,37,7],[38,4,38,7],[36,6,36,7],[60,0,60,14],[61,0,61,14],[40,12,40,13],[41,12,41,13],[34,0,34,1],[42,12,42,13],[60,18,60,20],[29,0,29,1],[29,6,29,7],[30,0,30,1],[30,6,30,7],[31,0,31,1],[31,6,31,7],[35,0,35,1],[35,6,35,7],[32,0,32,1],[32,6,32,7],[33,0,33,1],[33,6,33,7],[43,12,43,13],[59,0,59,14],[44,12,44,13]]}
[null,null,null,null,null,null,null,null,null,null,null,null,null,null,null,null,null,null,null,null,null,null,null,null,null,null,null,null,null,null,null,null,null,null,null,null,null,null,null,"2016-03-22T08:37:41","a.anisimov"]
[]
[]
[]
[]
["ИНН 7719838588/ КПП500301001, 142703, Московская обл., Ленинский р-н, г. Видное, ул. Школьная, д.26а, "]
["ОКПО  17265369 ОКВЭД 26.63  ОКТМО – 46628101 ОГРН 1137746192990"]
["ТЕЛ.8 (495)  740-03-66 доб. 4569, e-mail: m.lab@gradindustry.ru"]
["Свидетельство об аттестации испытательной лаборатории № 211/15 от 10 июля 2015 г."]
[]
[null,null,null,null,null,null,null,null,null,null,"УТВЕРЖДАЮ:"]
[null,null,null,null,null,null,null,null,null,null,"Начальник лаборатории"]
[null,null,null,null,null,null,null,null,null,null,"_____________ Р.В. Кузнецов"]
[null,null,null,null,null,null,null,null,null,null,{"$f":"E18","v":"2015-12-10"}]
[null,null,null,null,"ПРОТОКОЛ №",null,null,null,{"$f":"X8","v":0}]
[]
["Карьер (Поставщик):",null,null,null,"ГенералКонтракшен/Багаево"]
["Дата поступления:",null,null,null,"2015-12-10",null,null,null,null,"Дата испытания:",null,null,{"$f":"TODAY()","v":"2016-03-22"},null,null,null,"Модуль крупности песка относится к повышенной группе крупности согласно ГОСТ 8736-2014 п.4.2.2 таблица №1",null,null,3,3.5]
["Место хранения:",null,null,"Производственная база",null,null,null,null,null,null,null,null,null,null,null,null,"Модуль круности песка относится к крупной группе согласно ГОСТ 8736-2014 п.4.2.2 таблица №1",null,null,2.5,3]
["Результаты испытаний:",null,null,null,null,null,null,null,null,null,null,null,null,null,null,null,"Модуль крупности песка относится к средней группе согласно ГОСТ 8736-2014 п.4.2.2 таблица №1",null,null,2,2.5]
[null,null,null,null,null,null,null,null,null,null,null,null,null,null,null,null,"Модуль крупности песка относится к мелкой группе согласно ГОСТ 8736-2014 п.4.2.2 таблица №1",null,null,1.5,2]
["1. Объемный вес:",null,null,"а). Насыпная плотность в естеств. состоянии:",null,null,null,null,null,null,null,null,null,null,"кг/м³",null,"Модуль крупности песка относится к очень мелкой группе согласно ГОСТ 8736-2014 п.4.2.2 таблица №1",null,null,1,1.5]
[null,null,null,"б). Насыпная плотность в сухом состоянии:",null,null,null,null,null,null,null,null,null,null,"кг/м³",null,"Модуль крупности песка относится к тонкой группе согласно ГОСТ 8736-2014 п.4.2.2 таблица №1",null,null,0.7,1]
["2. Определение влажности песка:",null,null,null,null,null,null,null,null,null,null,null,null,null,null,null,"Модуль крупности песка относится к очень тонкой группе согласно ГОСТ 8736-2014 п.4.2.2 таблица №1",null,null,0,0.7]
["3. Определение зернового состава песка и модуля крупности:",null,null,null,null,null,null,null,null,null,null,null,null,null,null,null,{"$f":"IF(E39=\"\",\"\",INDEX(Q18:Q24,MATCH(E39,U18:U24,-1),))","v":""}]
[]
["Размеры отверстий сит, мм",null,"Остатки на сите",null,"Средние и Частыные остатки на сите",null,"Полный остаток на сите",null,null,null,null,null,null,null,null,null,"Модуль крупности песка относится к повышенной группе крупности согласно ГОСТ 8736-2014 п.4.2.3 таблица №2",null,null,65,75]
[null,null,null,null,null,null,null,null,null,null,null,null,null,null,null,null,"Модуль круности песка относится к крупной группе согласно ГОСТ 8736-2014 п.4.2.3 таблица №2",null,null,45,65]
[null,null,"I","I I","в гр.","в %",null,null,null,null,null,null,null,null,null,null,"Модуль крупности песка относится к средней группе согласно ГОСТ 8736-2014 п.4.2.3 таблица №2",null,null,30,45,null,null,null,null,null,null,null,null,null,null,null,null,null,null,null,null,null,null,null,null,null,null,null,null,null,null,null,null,null,null,null,null,null,null,null,null,null,null,null,null,null,null,null,null,null,null,null,null,null,null,null,null,null,null,null,null,null,null,null,null,null,null,null,null,null,null,null,null,null,null,null,null,null,null,null,null,null,null,null,null,null,null,null,null,null,null,null,null,null,null,null,null,null,null,null,null,null,null,null,null,null,null,null,null,null,null,null,null,null,null,null,null,null,null,null,null,10,36,null,"сита",null,"М 3,25","М 2,0"]
[10,null,null,"-",{"$f":"IF(C30=\"\",\"\",AVERAGE(C30:D30))","v":""},{"$f":"IF(E30=\"\",\"\",(E30/2000)*100)","v":""},null,null,null,null,null,null,null,null,null,null,"Модуль крупности песка относится к мелкой группе согласно ГОСТ 8736-2014 п.4.2.3 таблица №2",null,null,10,30,null,null,null,null,null,null,null,null,null,null,null,null,null,null,null,null,null,null,null,null,null,null,null,null,null,null,null,null,null,null,null,null,null,null,null,null,null,null,null,null,null,null,null,null,null,null,null,null,null,null,null,null,null,null,null,null,null,null,null,null,null,null,null,null,null,null,null,null,null,null,null,null,null,null,null,null,null,null,null,null,null,null,null,null,null,null,null,null,null,null,null,null,null,null,null,null,null,null,null,null,null,null,null,null,null,null,null,null,null,null,null,null,null,null,null,null,5,76,null,5,{"$f":"G31","v":0},0]
[5,null,null,"-",{"$f":"IF(C31=\"\",\"\",AVERAGE(C31:D31))","v":""},{"$f":"IF(E31=\"\",\"\",(E31/2000)*100)","v":""},null,null,null,null,null,null,null,null,null,null,"Модуль крупности песка относится к очень мелкой группе согласно ГОСТ 8736-2014 п.4.2.3 таблица №2",null,null,0,10,null,null,null,null,null,null,null,null,null,null,null,null,null,null,null,null,null,null,null,null,null,null,null,null,null,null,null,null,null,null,null,null,null,null,null,null,null,null,null,null,null,null,null,null,null,null,null,null,null,null,null,null,null,null,null,null,null,null,null,null,null,null,null,null,null,null,null,null,null,null,null,null,null,null,null,null,null,null,null,null,null,null,null,null,null,null,null,null,null,null,null,null,null,null,null,null,null,null,null,null,null,null,null,null,null,null,null,null,null,null,null,null,null,null,null,null,2.5,55,null,2.5,"",20,0]
[2.5,null,null,"-","",{"$f":"IF(E32=\"\",\"\",(E32/1000)*100)","v":""},{"$f":"IF(F32=\"\",\"\",F32)","v":""},null,null,null,null,null,null,null,null,null,{"$f":"IF(G34=\"\",\"\",INDEX(Q27:Q31,MATCH(G34,U27:U31,-1),))","v":""},null,null,null,null,null,null,null,null,null,null,null,null,null,null,null,null,null,null,null,null,null,null,null,null,null,null,null,null,null,null,null,null,null,null,null,null,null,null,null,null,null,null,null,null,null,null,null,null,null,null,null,null,null,null,null,null,null,null,null,null,null,null,null,null,null,null,null,null,null,null,null,null,null,null,null,null,null,null,null,null,null,null,null,null,null,null,null,null,null,null,null,null,null,null,null,null,null,null,null,null,null,null,null,null,null,null,null,null,null,null,null,null,null,null,null,null,null,null,null,null,1.25,66,null,1.25,"",45,10]
[1.25,null,null,"-","","",{"$f":"IF(F33=\"\",\"\",G32+F33)","v":""},null,null,null,null,null,null,null,null,null,null,null,null,null,null,null,null,null,null,null,null,null,null,null,null,null,null,null,null,null,null,null,null,null,null,null,null,null,null,null,null,null,null,null,null,null,null,null,null,null,null,null,null,null,null,null,null,null,null,null,null,null,null,null,null,null,null,null,null,null,null,null,null,null,null,null,null,null,null,null,null,null,null,null,null,null,null,null,null,null,null,null,null,null,null,null,null,null,null,null,null,null,null,null,null,null,null,null,null,null,null,null,null,null,null,null,null,null,null,null,null,null,null,null,null,null,null,null,null,null,null,0.63,187,null,0.63,"",70,30]
[0.63,null,null,"-","","",{"$f":"IF(F34=\"\",\"\",G33+F34)","v":""},null,null,null,null,null,null,null,null,null,null,null,null,null,null,null,null,null,null,null,null,null,null,null,null,null,null,null,null,null,null,null,null,null,null,null,null,null,null,null,null,null,null,null,null,null,null,null,null,null,null,null,null,null,null,null,null,null,null,null,null,null,null,null,null,null,null,null,null,null,null,null,null,null,null,null,null,null,null,null,null,null,null,null,null,null,null,null,null,null,null,null,null,null,null,null,null,null,null,null,null,null,null,null,null,null,null,null,null,null,null,null,null,null,null,null,null,null,null,null,null,null,null,null,null,null,null,null,null,null,null,0.315,344,null,0.315,"",90,70]
[0.315,null,null,"-","","",{"$f":"IF(F35=\"\",\"\",G34+F35)","v":""},null,null,null,null,null,null,null,null,null,null,null,null,null,null,null,null,null,null,null,null,null,null,null,null,null,null,null,null,null,null,null,null,null,null,null,null,null,null,null,null,null,null,null,null,null,null,null,null,null,null,null,null,null,null,null,null,null,null,null,null,null,null,null,null,null,null,null,null,null,null,null,null,null,null,null,null,null,null,null,null,null,null,null,null,null,null,null,null,null,null,null,null,null,null,null,null,null,null,null,null,null,null,null,null,null,null,null,null,null,null,null,null,null,null,null,null,null,null,null,null,null,null,null,null,null,null,null,null,null,null,0.16,273,null,0.16,"",100,100]
[0.16,null,null,"-","","",{"$f":"IF(F36=\"\",\"\",G35+F36)","v":""},null,null,null,null,null,null,null,null,null,null,null,null,null,null,null,null,null,null,null,null,null,null,null,null,null,null,null,null,null,null,null,null,null,null,null,null,null,null,null,null,null,null,null,null,null,null,null,null,null,null,null,null,null,null,null,null,null,null,null,null,null,null,null,null,null,null,null,null,null,null,null,null,null,null,null,null,null,null,null,null,null,null,null,null,null,null,null,null,null,null,null,null,null,null,null,null,null,null,null,null,null,null,null,null,null,null,null,null,null,null,null,null,null,null,null,null,null,null,null,null,null,null,null,null,null,null,null,null,null,null,"< 0,16",75,null,0.16,""]
["< 0,16",null,null,"-","","",{"$f":"IF(F37=\"\",\"\",(G36+F37)/100)","v":""}]
[null,null,null,null,"Модуль крупности:"]
[null,null,null,null,{"$f":"IF(SUM(G32:H36)/100=0,\"\",SUM(G32:H36)/100)","v":""}]
[]
["4. Определение истинной плотности песка \"ускоренным методом\":",null,null,null,null,null,null,null,null,null,null,null,null,null,"г/см³",null,"Песок приемлем в дорожном строительстве вне населенных пунктов",null,null,740,1500]
["5. Определение содержания пылевидных и глинястых частиц:",null,null,null,null,null,null,null,null,null,null,null,null,null,null,null,"Песок приемлем для дорожного строительства в пределах территории населенных пунктов и зон перспективной застройки, а также при возведении производственных зданий и сооружений.",null,null,370,740]
["6. Определение пустотности песка:",null,null,null,null,null,null,null,null,null,null,null,{"$f":"IF(M41=\"\",\"\",(1-(M23/(M41*1000))))","v":""},null,null,null,"Песок  приемлем для строящихся жилых и общественных зданиях.",null,null,1,370]
["7. Другие виды испытаний \"Содержание глины в комках, %\":",null,null,null,null,null,null,null,null,null,null,null,null,null,null,null,"Радиацонно-гигиеническая оценка не предоставлена предприятием-изготовителем. ",null,null,0,0]
["8. Радиационно-гигиеническая оценка указанная предприятем-изготовителе:",null,null,null,null,null,null,null,null,null,null,null,null,null,"Бк/кг",null,{"$f":"IF(M45=\"\",\"- не предоставлены данные\",IF(M45=\"\",\"\",INDEX(Q41:Q44,MATCH(M45,U41:U44,-1),)))","v":"- не предоставлены данные"}]
[]
["З А К Л Ю Ч Е Н И Е:"]
["1. Каждую группу песка характеризуют значением модуля крупности Мк, указанным в ГОСТ 8736-2014 п.4.2.2 таблица №1:",null,null,null,null,null,null,null,null,null,null,null,null,null,null,null,null,null,"Группа песка",null,null,"Св. 10мм",null,null,"Св. 5мм",null,null,"Менее 0,16мм"]
[{"$f":"Q25","v":""},null,null,null,null,null,null,null,null,null,null,null,null,null,null,null,null,"I","Повышенной крупности, крупный и средний",null,null,0.5,{"$f":"IF($F$30=\"\",\"\",IF($F$30=0,\"\",$F$30))","v":""},{"$f":"IF(W49<=V49,1,IF(W49=\"\",\"\",\"-\"))","v":""},5,{"$f":"IF($F$31=\"\",\"\",$F$31)","v":""},{"$f":"IF(Z49=\"\",\"\",IF(Z49<=5,1,\"-\"))","v":""},5,{"$f":"IF($F$37=\"\",\"\",$F$37)","v":""},{"$f":"IF(AC49=\"\",\"\",IF(AC49<=5,1,\"-\"))","v":""}]
["2. Полный остаток песка на сите №063 должен соответствовать значениям, указанным в ГОСТ 8736-2014 п.4.2.3 таблица №2:",null,null,null,null,null,null,null,null,null,null,null,null,null,null,null,null,null,"Мелкий ",null,null,0.5,{"$f":"IF($F$30=\"\",\"\",IF($F$30=0,\"\",$F$30))","v":""},{"$f":"IF(W50<=V50,1,IF(W50=\"\",\"\",\"-\"))","v":""},5,{"$f":"IF($F$31=\"\",\"\",$F$31)","v":""},{"$f":"IF(Z50=\"\",\"\",IF(Z50<=5,1,\"-\"))","v":""},10,{"$f":"IF($F$37=\"\",\"\",$F$37)","v":""},{"$f":"IF(AC50=\"\",\"\",IF(AC50<=10,IF(AC50<5,\"-\",1)))","v":""}]
[{"$f":"Q32","v":""},null,null,null,null,null,null,null,null,null,null,null,null,null,null,null,null,"II","Повышенной крупности",null,null,5,{"$f":"IF($F$30=\"\",\"\",IF($F$30=0,\"\",$F$30))","v":""},{"$f":"IF(W51=\"\",\"\",IF(W51<=5,IF(W51<0.5,\"-\",2)))","v":""},20,{"$f":"IF(F31=\"\",\"\",F31)","v":""},{"$f":"IF(Z51=\"\",\"\",IF(Z51<=20,IF(Z51<5,\"-\",2)))","v":""},10,{"$f":"IF($F$37=\"\",\"\",$F$37)","v":""},{"$f":"IF(AC51=\"\",\"\",IF(AC51<=10,IF(AC51<5,\"-\",2)))","v":""}]
[null,null,null,null,null,null,null,null,null,null,null,null,null,null,null,null,null,null,"Крупный и средний",null,null,5,{"$f":"IF($F$30=\"\",\"\",IF($F$30=0,\"\",$F$30))","v":""},{"$f":"IF(W52=\"\",\"\",IF(W52<=5,IF(W52<0.5,\"-\",2)))","v":""},15,{"$f":"IF(F31=\"\",\"\",F31)","v":""},{"$f":"IF(Z52=\"\",\"\",IF(Z52<=15,IF(Z52<5,\"-\",2)))","v":""},15,{"$f":"IF($F$37=\"\",\"\",$F$37)","v":""},{"$f":"IF(AC52=\"\",\"\",IF(AC52<=15,IF(AC52<10,\"-\",2)))","v":""}]
[null,null,null,null,null,null,null,null,null,null,null,null,null,null,null,null,null,null,"Мелкий и очень мелкий",null,null,0.5,{"$f":"IF($F$30=\"\",\"\",IF($F$30=0,\"\",$F$30))","v":""},{"$f":"IF(W53<=V53,2,IF(W53=\"\",\"\",\"-\"))","v":""},10,{"$f":"IF(F31=\"\",\"\",F31)","v":""},{"$f":"IF(Z53=\"\",\"\",IF(Z53<=10,IF(Z53<5,\"-\",2)))","v":""},20,{"$f":"IF($F$37=\"\",\"\",$F$37)","v":""},{"$f":"IF(AC53=\"\",\"\",IF(AC53<=20,IF(AC53<15,\"-\",2)))","v":""}]
["3. Содержание в песке зерен крупностью св.10; 5 и менее 0,16мм не должно превышать значений, указанных в ГОСТ 8736-2014 п.4.2.4 таблица №3:",null,null,null,null,null,null,null,null,null,null,null,null,null,null,null,null,null,null,null,null,null,null,{"$f":"IFERROR(LARGE($X$49:$X$53,1),\"\")","v":""},null,null,{"$f":"IFERROR(LARGE($AA$49:$AA$53,1),\"\")","v":""},null,null,{"$f":"IFERROR(LARGE($AD$49:$AD$53,1),\"\")","v":""}]
[{"$f":"IF(X54=\"\",\"- не определено\",IF(X54=1,X79,X80))","v":"- не определено"}]
[{"$f":"IF(AA54=\"\",\"- не определено\",IF(AA54=1,X82,X83))","v":"- не определено"},null,null,null,null,null,null,null,null,null,null,null,null,null,null,null,null,null,"Группа песка",null,null,"Содержание пыли",null,null,"Содержание глины"]
[{"$f":"IF(AD54=\"\",\"- не определено\",IF(AD54=1,X85,X86))","v":"- не определено"},null,null,null,null,null,null,null,null,null,null,null,null,null,null,null,null,"I","Повышенной крупности, крупный и средний",null,null,2,{"$f":"IF($M$42=\"\",\"\",($M$42)*100)","v":""},{"$f":"IF(W57<=V57,1,\"-\")","v":"-"},0.25,{"$f":"IF($M$44=\"\",\"\",IF($M$44=0,\"\",($M$44)*100))","v":""},{"$f":"IF(Z57=\"\",\"\",IF(Z57<=0.25,1,\"-\"))","v":""}]
["4. Содержание в песке пылевидных и глинястыхчастиц, а также глины в комках не должно превышать значений, указанных в ГОСТ 8736-2014 п.4.2.5 таблица №4:",null,null,null,null,null,null,null,null,null,null,null,null,null,null,null,null,null,"Мелкий ",null,null,2,{"$f":"IF($M$42=\"\",\"\",($M$42)*100)","v":""},{"$f":"IF(W58<=V58,1,\"-\")","v":"-"},0.35,{"$f":"IF($M$44=\"\",\"\",IF($M$44=0,\"\",($M$44)*100))","v":""},{"$f":"IF(Z58=\"\",\"\",IF(Z58<=0.35,1,\"-\"))","v":""}]
[{"$f":"IF(X62=\"\",\"- не определено\",IF(X62=1,X88,X89))","v":"- не определено"},null,null,null,null,null,null,null,null,null,null,null,null,null,null,null,null,"II","Повышенной крупности, крупный и средний",null,null,3,{"$f":"IF($M$42=\"\",\"\",($M$42)*100)","v":""},{"$f":"IF(W59=\"\",\"\",IF(W59<=3,IF(W59<=2,\"-\",2)))","v":""},0.5,"",{"$f":"IF(Z59<=0.35,\"\",IF(Z59>0.5,\"\",\"2\"))","v":""}]
[{"$f":"IF(AA62=\"\",\"- не определено\",IF(AA62=1,X91,X92))","v":"- не определено"},null,null,null,null,null,null,null,null,null,null,null,null,null,null,null,null,null,"Мелкий и очень мелкий",null,null,5,{"$f":"IF($M$42=\"\",\"\",($M$42)*100)","v":""},{"$f":"IF(W60=\"\",\"\",IF(W60<=5,IF(W60<=3,\"-\",2)))","v":""},0.5,"",{"$f":"IF(Z60<=0.35,\"\",IF(Z60>0.5,\"\",\"2\"))","v":""}]
["5. Песок в зависимости от значений удельной эффективной активности естественных радионуклидов Аэфф. По результатам которой устанавливают область его применения согласно ГОСТ 8736-2014 п.4.3:",null,null,null,null,null,null,null,null,null,null,null,null,null,null,null,null,null,"Тонкий и очень тонкий",null,null,10,{"$f":"IF($M$42=\"\",\"\",($M$42)*100)","v":""},{"$f":"IF(W61=\"\",\"\",IF(W61<=10,IF(W61<=5,\"-\",2)))","v":""},1,"",{"$f":"IF(Z61<=0.35,\"\",IF(Z61>1,\"\",\"2\"))","v":""}]
[{"$f":"Q45","v":"- не предоставлены данные"},null,null,null,null,null,null,null,null,null,null,null,null,null,null,null,null,null,null,null,null,null,null,{"$f":"IFERROR(LARGE($X$57:$X$61,1),\"\")","v":""},null,null,{"$f":"IFERROR(LARGE($AA$57:$AA$61,1),\"\")","v":""}]
[]
[]
[]
[null,null,null,null,null,null,null,null,null,null,null,null,null,null,null,null,"/Болтенкова И.Ю./"]
[null,null,null,null,null,null,null,null,null,null,null,null,null,null,null,null,"/Кубакова Л.Р./"]
[null,null,null,null,null,null,null,null,null,null,null,null,null,null,null,null,"/Приходько В.А./"]
[null,null,null,null,null,null,null,null,null,null,null,null,null,null,null,null,"/Сухоручкин С.В./"]
[]
[]
[]
[]
[]
[]
[]
[]
[]
[null,null,null,null,null,null,null,null,null,null,null,null,null,null,null,null,null,null,null,null,null,null,null,"Содержание в песке зерен крупностью св.10 мм, песок относится к первой группе"]
[null,null,null,null,null,null,null,null,null,null,null,null,null,null,null,null,null,null,null,null,null,null,null,"Содержание в песке зерен крупностью св.10 мм, песок относится ко второй группе"]
[]
["Примечание: Запрещается частичная перепечатка  данного протокола без согласования с испытательной лабораторией",null,null,null,null,null,null,null,null,null,null,null,null,null,null,null,null,null,null,null,null,null,null,"Содержание в песке зерен крупностью св.5 мм, песок относится к первой группе"]
[null,null,null,null,null,null,null,null,null,null,null,null,null,null,null,null,null,null,null,null,null,null,null,"Содержание в песке зерен крупностью св.5 мм, песок относится ко второй группе"]
[]
[null,null,null,null,null,null,null,null,null,null,null,null,null,null,null,null,null,null,null,null,null,null,null,"Содержание в песке зерен крупностью менее 0,16 мм, песок относится к первой группе"]
[null,null,null,null,null,null,null,null,null,null,null,null,null,null,null,null,null,null,null,null,null,null,null,"Содержание в песке зерен крупностью менее 0,16 мм, песок относится ко второй группе"]
["Испытания провел лаборант:",null,null,null,null,null,null,null,null,null,null,null,"/Болтенкова И.Ю./"]
[null,null,null,null,null,null,null,null,null,null,null,null,null,null,null,null,null,null,null,null,null,null,null,"По содержанию в песке пылевидных частиц, песок относится к первой группе"]
[null,null,null,null,null,null,null,null,null,null,null,null,null,null,null,null,null,null,null,null,null,null,null,"По содержанию в песке пылевидных частиц, песок относится ко второй группе"]
[]
[null,null,null,null,null,null,null,null,null,null,null,null,null,null,null,null,null,null,null,null,null,null,null,"По содержанию в песке глинястых частиц, песок относится к первой группе"]
[null,null,null,null,null,null,null,null,null,null,null,null,null,null,null,null,null,null,null,null,null,null,null,"По содержанию в песке глинястых частиц, песок относится ко второй группе"]